{"text_format":"1","workbook":"xlsx","n_sheets":13,"sheets":["_control","Bevilgningsrapportering","Note A","Note B","Artskontorapportering","Note 1 - Innbetalinger","Note 2 - Lønn","Note 3 - Andre driftsutgifter","Note 4 - Finans","Note 5 - Investeringer","Note 6 - Innkrevingsvirksomhet","Note 7 - Tilskuddsforvaltning","Note 8- Sammenheng statskassen"],"not_rendered":{"charts":0,"images":0,"macros":1,"external_links":1,"defined_names":1,"comments":0,"pivot_tables":0},"unopened":[],"bounds":{"document_bytes":16777216,"sheet_cells":100000,"rows_first":2000,"rows_last":500,"rows_between":2000,"halvings":0,"cell_chars":16384,"cell_head_chars":4096},"cells_cut":0,"cells_raw":0,"read":"whole","date_system":"1900"}

{"sheet":"_control","index":0,"n_rows":36,"n_cols":4,"rows_kept":36,"cut":false,"hidden":true,"merged":[]}
["*","Control Worksheet (NB any row with a '*' as the first character in column A is ignored)"]
[]
[]
["*","Global Parameters (setdefault will be used unless parameter of same name is passed in from Agresso)"]
["*","Parameter","Value"]
["setdefault","client","F6"]
["setdefault","period",201910]
[]
["setdefault","date"]
["setdefault","date-1"]
["setdefault","date_x"]
[]
["*","setnum allows use of arithmetic expressions on parameters"]
["setnum","year","<period> \\ 100"]
["setnum","pyear","<year> - 1"]
["setnum","period0","<year> * 100"]
[]
["*","setperiod allows use of arithmetic expressions on period parameters"]
["*","e.g. set previous 12 periods for a rolling 12 month crosstab by period"]
["*setperiod","period1","<period> - 11"]
["*setperiod","period2","<period> - 10"]
["*setperiod","period3","<period> - 9"]
["*setperiod","period4","<period> - 8"]
["*setperiod","period5","<period> - 7"]
["*setperiod","period6","<period> - 6"]
["*setperiod","period7","<period> - 5"]
["*setperiod","period8","<period> - 4"]
["*setperiod","period9","<period> - 3"]
["*setperiod","period10","<period> - 2"]
["*setperiod","period11","<period> - 1"]
["*set","period12","<period>"]
[]
[]
[]
["*","Worksheet Directory"]
["*","Sheet Name","Template Name","Local Parameters"]

{"sheet":"Bevilgningsrapportering","index":1,"n_rows":38,"n_cols":8,"rows_kept":38,"cut":false,"hidden":false,"merged":[[1,0,1,7]]}
[]
["Bevilgningsrapport for 2019"]
["Utgiftskapittel","Kapittelnamn","Post","Posttekst","Note","Samla løyving","Rekneskap 2019","Meirutgift (-) og mindreutgift"]
[]
["0339","Lotteri- og stiftelsestilsynet","01","Driftsutgifter","A, B",{"$f":"'Note A'!D4","v":82915000},82874288.370000005,{"$f":"F5-G5","v":40711.629999995232}]
["0339","Lotteri- og stiftelsestilsynet","21","Spesielle driftsutgifter","A, B",{"$f":"'Note A'!D5","v":10500000},12753485.73,{"$f":"F6-G6","v":-2253485.7300000004}]
["0315","Frivilligheitsformål","70","Mva.kompensasjon frivillige organisasjonar","A",{"$f":"'Note A'!D6","v":1607600000},1607243860,{"$f":"F7-G7","v":356140}]
["0315","Frivilligheitsformål","82","Mva.kompensasjon bygging idrettsanlegg","A",{"$f":"'Note A'!D7","v":288400000},272004191,16395809]
["1633","Nettoordning for mva i staten","01","Driftsutgifter",null,0,6502814.2000000002]
["",null,"",null,null,0,0]
["Sum utgiftsført",null,null,null,null,{"$f":"SUM(F4:F10)","v":1989415000},{"$f":"SUM(G4:G10)","v":1981378639.3}]
[]
["Inntektskapittel","Kapittelnamn","Post","Posttekst",null,"Samla løyving","Rekneskap 2019","Meirinntekt og mindreinntekt(-)"]
[]
[3339,"Inntekter frå spel, lotteri og stiftelsar","02","Gebyr lotteri","B",6757000,8770477,{"$f":"G15-F15","v":2013477}]
[3339,"Inntekter frå spel, lotteri og stiftelsar","04","Registreringsgebyr stiftelsar","B",161000,221580,60580]
[3339,"Inntekter frå spel, lotteri og stiftelsar","07","Inntekter ved oppdrag","B",9629000,12383000,2754000]
[5568,"Sektoravgifter under Kulturdepartementet","71","Årsavgift stiftelsar","B",24215000,24609739,{"$f":"G18-F18","v":394739}]
[5568,"Sektoravgifter under Kulturdepartementet","73","Refusjon Norsk Tipping og Rikstoto",null,41197000,41197000,{"$f":"G19-F19","v":0}]
[5309,"Tilfeldige inntekter","29","Ymse",null,0,4948805]
[5700,"Arbeidsgjevaravgift","72","Arbeidsgjevaravgift",null,0,6674702.3700000001]
[]
["Sum inntektsført",null,null,null,null,{"$f":"SUM(F14:F21)","v":81959000},{"$f":"SUM(G14:G21)","v":98805303.370000005}]
[]
["Netto rapportert til bevilgningsrekneskapen",null,null,null,null,null,{"$f":"G11-G23","v":1882573335.9299998}]
["Kapitalkontoar"]
[60075901,"Norges Bank KK /innbetalingar ",null,null,null,null,95402574.790000007]
[60075902,"Norges Bank KK/utbetalingar",null,null,null,null,-1976780739.8699999]
[703803,"Endring i mellomvære med statskassa",null,null,null,null,-1195170.8500000001]
["Sum rapportert",null,null,null,null,null,{"$f":"SUM(G25:G29)","v":-9.5460563898086548E-8}]
[]
["Behaldningar rapportert til kapitalrekneskapen (31.12)"]
[null,null,null,null,null,"31.12.2019","31.12.2018","Endring"]
[{"$f":"A37","v":703803},"Mellomvære med statskassa",null,null,null,{"$f":"C37+C38","v":-3149256.6},{"$f":"C37","v":-1954085.75},{"$f":"SUM(F34-G34)","v":-1195170.8500000001}]
[null,null,0]
[null,null,0]
[703803,3,-1954085.75]
[703803,4,-1195170.8500000001]

{"sheet":"Note A","index":2,"n_rows":7,"n_cols":4,"rows_kept":7,"cut":false,"hidden":false,"merged":[[1,0,1,3]]}
[]
["Note A Forklaring av samla løyving"]
["Kapittel og post"," Overført frå i fjor","Årets tildelingar","Sama løyving"]
[33901,3248000,79667000,{"$f":"B4+C4","v":82915000}]
[33921,2085000,8415000,{"$f":"B5+C5","v":10500000}]
[31570,0,1607600000,1607600000]
[31582,0,288400000,288400000]

{"sheet":"Note B","index":3,"n_rows":8,"n_cols":11,"rows_kept":8,"cut":false,"hidden":false,"merged":[[1,0,1,6],[7,0,7,10]]}
[]
["Note B  Forklaring til brukte fullmakter og berekning av mogeleg overførbart beløp til neste år"]
["Kapittel og post","Stikkord","Meriutgift(-)/ mindreutgift","Utgiftsført av andre i hht avgitte belastnings-fullmakter (-)"," Meirutgift(-)/ mindreutgift etter avgitte belastningsfullmakter","Meirinntekter / mindreinntekter(-) iht meirinntektsfullmakt (justert for eventuell mva.)","Omdisponering frå post 01 til 45 eller til post 01/21 frå neste års løyving","Innsparingar(-)","Sum grunnlag for overføring","Maks. overførbart beløp *","Mulig overførbart beløp berekna av verksemda"]
[33901,null,{"$f":"Bevilgningsrapportering!H5","v":40711.629999995232},null,{"$f":"C4+D4","v":40711.629999995232},{"$f":"Bevilgningsrapportering!H15+Bevilgningsrapportering!H16+Bevilgningsrapportering!H18","v":2468796},null,null,{"$f":"E4+F4+G4+H4","v":2509507.6299999952},3983000,{"$f":"I4","v":2509507.6299999952}]
[33921,"\"kan overførast\"",{"$f":"Bevilgningsrapportering!H6","v":-2253485.7300000004},null,{"$f":"C5+D5","v":-2253485.7300000004},{"$f":"Bevilgningsrapportering!H17","v":2754000},null,null,{"$f":"E5+F5+G5-H5","v":500514.26999999955},null,{"$f":"I5","v":500514.26999999955}]
[31570,null,{"$f":"[1]Bevilgningsrapportering!H7","v":0},null,{"$f":"C6+D6","v":0},null,null,null,0]
[31582,null,{"$f":"[1]Bevilgningsrapportering!H8","v":314},null,314,null,null,null,0]
["*Maksimalt beløp som kan overførast er 5 % av årets løyving på driftspostane 01-29, unnateke post 24 eller sum av dei siste to års løyvingar for postar med stikkordet \"kan overførast\". Sjå rundskriv R-2/2013 for meir informasjon om overføring av ubrukte løyvingar."]

{"sheet":"Artskontorapportering","index":4,"n_rows":45,"n_cols":5,"rows_kept":45,"cut":false,"hidden":false,"merged":[[1,1,1,3]]}
[]
["KONTI:","Artskontorapport for 2019"]
[null,null,"Note","2019","2018"]
[null,"Driftsinntekter rapportert til bevilgningsrekneskapen"]
["370-374","Innbetalingar frå gebyr",1,8992057,51242325]
["else 3*","Andre innbetalingar",1,12383000,7838260.2000000002]
[null,"Sum innbetalingar frå drift",null,{"$f":"SUM(D4:D6)","v":21375057},{"$f":"SUM(E4:E6)","v":59080585.200000003}]
[]
[null,"Driftsutgifter rapportert til bevilgningsrekneskapen"]
["500-557;570-599","Utbetalingar til løn ",2,54389628.5,51190275.329999998]
["400-454;610-787","Andre utbetalingar til drift",3,34708349.819999993,29570803.190000001]
[null,"Sum utbetalingar til drift",null,{"$f":"SUM(D9:D11)","v":89097978.319999993},{"$f":"SUM(E9:E11)","v":80761078.519999996}]
[]
[null,"Netto rapporterte driftsutgifter",null,{"$f":"D12-D7","v":67722921.319999993},{"$f":"E12-E7","v":21680493.319999993}]
[]
[null,"Investerings- og finansutgifter rapportert til bevilgningsrekneskapen"]
["100-129;470-499","Utbetaling til investeringar",5,4223801.5200000005,3139325.4000000004]
["815-819","Utbetaling av finansutgifter",4,5994.26,2679.21]
[null,"Sum investerings- og finansutgifter",null,{"$f":"SUM(D16:D18)","v":4229795.78},{"$f":"SUM(E16:E18)","v":3142004.6100000003}]
[]
[null,"Netto rapporterte investerings- og finansutgifter",null,{"$f":"D19","v":4229795.78},{"$f":"E19","v":3142004.6100000003}]
[]
[null,"Innkrevingsverksemd og andre overføringar til staten"]
["821-849","Innbetaling av skattar, avgifter, gebyr m.m.",6,70669394,25428443.84]
[null,"Sum innkrevingsverksemd og andre overføringar til staten",null,{"$f":"SUM(D23:D24)","v":70669394},{"$f":"SUM(E23:E24)","v":25428443.84}]
[]
[null,"Tilskotsforvaltning og andre overføringar frå staten"]
["851-879","Utbetalingar av tilskot og stønader",7,1881548051,1729652686]
[null,"Sum tilskotsforvaltning og andre overføringar frå staten",null,{"$f":"SUM(D27:D28)","v":1881548051},{"$f":"SUM(E27:E28)","v":1729652686}]
[]
[null,"Inntekter og utgifter rapportert på felleskapittel "]
[1985,"Gruppelivsforsikring konto 1985 (ref. kap. 5309, inntekt)",null,86150,87516.12]
[1986,"Arbeidsgjevaravgift konto 1986 (ref. kap. 5700, inntekt)",null,6674702.3700000001,6311492.1500000004]
[1987,"Nettoføringsordning for meirverdiavgift konto 1987 (ref. kap. 1633, utgift)",null,6502814.2000000002,5002744.8099999996]
[null,"Netto rapporterte utgifter på felleskapittel ",null,{"$f":"D34-D33-D32","v":-258038.16999999993},{"$f":"E34-E33-E32","v":-1396263.4600000009}]
[]
[null,"Netto rapportert til bevilgningsrekneskapen ",null,{"$f":"D14+D21-D25+D29+D35","v":1882573335.9299998},{"$f":"E14+E21-E25+E29+E35","v":1727650476.6299999}]
[]
[null,"Oversikt over mellomvære med statskassa "]
[null,"Eigedelar og gjeld",null,2019,2018]
["154;160-161;164;139;150-152;157;170-179","Lån til tilsette",null,0,23056.25]
["260-265;269","Skuldig skattetrekk og andre trekk",null,-2023096,-1806162]
["270-274;277;279","Skuldig meirverdiavgift",null,-1129192,-170980]
["221-222;229;232;236;239;240;280-282;290-299","Annan kortsiktig gjeld",null,3031.3999999999996,0]
[null,"Sum mellomvære med statskassa",8,{"$f":"SUM(D41:D44)","v":-3149256.6},{"$f":"SUM(E41:E44)","v":-1954085.75}]

{"sheet":"Note 1 - Innbetalinger","index":5,"n_rows":21,"n_cols":9,"rows_kept":21,"cut":false,"hidden":false,"merged":[]}
[]
["Note 1 Inntekter rapportert til bevilgningsrekneskapen"]
[null,null,null,null,null,null,null,"2019","2018"]
["Innbetalingar frå gebyr, avgifter og refusjonar"]
["Gebyr lotteri",null,null,null,null,null,null,8770477,8085765]
["Sakshandsamingsgebyr samvirkelova",null,null,null,null,null,null,56000,28000]
["Registreringsgebyr stiftelsar",null,null,null,null,null,null,165580,167560]
["Refusjon Norsk Tipping *",null,null,null,null,null,null,0,40463000]
["Refusjon Norsk Rikstoto *",null,null,null,null,null,null,0,2498000]
["Sum innbetalingar frå gebyr ",null,null,null,null,null,null,{"$f":"SUM(H4:H9)","v":8992057},{"$f":"SUM(I4:I9)","v":51242325}]
[]
["Andre innbetalingar"]
["Oppdrag utvikling av anleggsregister",null,null,null,null,null,null,3200000,0]
["Handlingsplan mot speleproblem",null,null,null,null,null,null,6283000,4670000]
["Nasjonal plattform mot kampfiksing",null,null,null,null,null,null,2900000,2900000]
["Annan inntekt, refusjonar",null,null,null,null,null,null,0,268260.2]
["Sum andre innbetalinger",null,null,null,null,null,null,{"$f":"SUM(H12:H16)","v":12383000},{"$f":"SUM(I12:I16)","v":7838260.2000000002}]
[]
["Sum innbetalinger fra drift",null,null,null,null,null,null,{"$f":"H10+H17","v":21375057},{"$f":"I10+I17","v":59080585.200000003}]
[]
["* Refusjon Norsk Tipping og Norsk Rikstoto vart i 2018 ført på artskonto 370 i staden for 842."]

{"sheet":"Note 2 - Lønn","index":6,"n_rows":11,"n_cols":7,"rows_kept":11,"cut":false,"hidden":false,"merged":[]}
[]
["Note 2 Utbetalingar til løn"]
[null,null,null,null,null,"2019","2018"]
["Løn",null,null,null,null,44109305.93,40748004.57]
["Arbeidsgjevaravgift",null,null,null,null,6674702.3700000001,6311492.1500000004]
["Pensjonsutgifter",null,null,null,null,5000843.9000000004,4617628.0999999996]
["Sjukepengar og andre refusjonar (-)",null,null,null,null,-2503357.29,-1219934.5]
["Andre ytingar",null,null,null,null,1108133.5900000001,733085.00999999989]
["Sum utbetalingar til løn",null,null,null,null,{"$f":"SUM(F4:F8)","v":54389628.5},{"$f":"SUM(G4:G8)","v":51190275.329999998}]
[]
["Tal årsverk:",null,null,null,null,63,62]

{"sheet":"Note 3 - Andre driftsutgifter","index":7,"n_rows":14,"n_cols":8,"rows_kept":14,"cut":false,"hidden":false,"merged":[]}
[]
["KONTI:","Note 3 Andre utbetalingar til drift"]
[null,null,null,null,null,null,"2019","2018"]
["630-631","Husleige",null,null,null,null,6138697,6118138]
[663,"Vedlikehald og ombygging av leigde lokale",null,null,null,null,213556.59,313683.40000000002]
["632-639","Andre utgifter til drift av eigedom og lokale",null,null,null,null,1558356.55,1199554.51]
["664-669","Reparasjon og vedlikehald av maskiner, utstyr m.m.",null,null,null,null,263666.3,242531.68]
["650-659","Mindre innkjøp av utstyr",null,null,null,null,490861.84,296193.12]
["640-649","Leige av datautstyr og system (årlege lisensar m.m.)",null,null,null,null,4948133.93,4362751.5199999996]
["670-673","Kjøp av konsulenttenester",null,null,null,null,8620094.9199999999,3752272.54]
["674-679","Kjøp av framande tenester",null,null,null,null,7006487.3700000001,6667124.79]
["710-719","Reiser og diett",null,null,null,null,2279102.3400000003,2443460.1799999997]
["else 400-454; NOT 8*","Andre driftsutgifter",null,null,null,null,3189392.98,4175093.4499999993]
[null,"Sum andre utbetalingar til drift",null,null,null,null,{"$f":"SUM(G4:G13)","v":34708349.82},{"$f":"SUM(H4:H13)","v":29570803.189999998}]

{"sheet":"Note 4 - Finans","index":8,"n_rows":6,"n_cols":7,"rows_kept":6,"cut":false,"hidden":false,"merged":[]}
[]
["KONTI:","Note 4 Finansutgifter"]
[null,null,null,null,null,"2019","2018"]
[null,"Utbetaling av finansutgifter"]
[815,"Renteutgifter",null,null,null,5994.26,2679.21]
[null,"Sum utbetaling av finansutgifter",null,null,null,{"$f":"SUM(F4:F5)","v":5994.26},{"$f":"SUM(G4:G5)","v":2679.21}]

{"sheet":"Note 5 - Investeringer","index":9,"n_rows":6,"n_cols":7,"rows_kept":6,"cut":false,"hidden":false,"merged":[]}
[]
["KONTI:","Note 5 Utbetaling til investeringer og kjøp av aksjer"]
[null,null,null,null,null,"2019","2018"]
[null,"Utbetaling til investeringar"]
["else 11*;12*;4*","Inventar, datamaskiner (serverar m.m.)",null,null,null,4223801.5200000005,3139325.4000000004]
[null,"Sum utbetaling til investeringar",null,null,null,{"$f":"SUM(F5:F5)","v":4223801.5200000005},{"$f":"SUM(G5:G5)","v":3139325.4000000004}]

{"sheet":"Note 6 - Innkrevingsvirksomhet","index":10,"n_rows":11,"n_cols":7,"rows_kept":11,"cut":false,"hidden":false,"merged":[]}
[]
["KONTI:","Note 6 Innkrevingsverksemd og andre overføringar til staten"]
[null,null,null,null,null,"2019","2018"]
[null,"Refusjon Norsk Tipping *",null,null,null,38669144,"0"]
[null,"Refusjon Norsk Rikstoto *",null,null,null,2527856,"0"]
[null,"Avgifter stiftelsesområdet ",null,null,null,24533180,24299432]
[null,"Diverse refusjonar",null,null,null,76559,0]
[null,"Tilfeldige og andre inntekter",null,null,null,4862655,1129012]
[null,"Sum innkrevingsverksemd og andre overføringar til staten",null,null,null,{"$f":"SUM(F4:F8)","v":70669394},{"$f":"SUM(G4:G8)","v":25428444}]
[]
[null,"* Refusjon Norsk Tipping og Norsk Rikstoto vart i 2018 ført på artskonto 370 i staden for 842."]

{"sheet":"Note 7 - Tilskuddsforvaltning","index":11,"n_rows":8,"n_cols":7,"rows_kept":8,"cut":false,"hidden":false,"merged":[]}
[]
["KONTI:","Note 7 Tilskotsforvaltning og andre overføringar frå staten"]
[null,null,null,null,null,"2019","2018"]
[null,"Mva.kompensasjon frivillige organisasjonar",null,null,null,1607243860,1423500000]
[null,"Mva.kompensasjon bygging av idrettsanlegg",null,null,null,272004191,304002686]
["85*;86*;87*","Tilskot handlingsplan mot speleavhengigheit",null,null,null,2300000,2150000]
[null,"Sum tilskotsforvaltning og andre overføringar frå staten"]
[null,"Sum tilskotsforvaltning og andre overføringar frå staten",null,null,null,{"$f":"SUM(F4:F6)","v":1881548051},{"$f":"SUM(G4:G6)","v":1729652686}]

{"sheet":"Note 8- Sammenheng statskassen","index":12,"n_rows":16,"n_cols":10,"rows_kept":16,"cut":false,"hidden":false,"merged":[]}
[]
[null,null,"Note 8 Samanheng mellom avrekning med statskassa og mellomverande med statskassa"]
[]
[null,null,"Del A Skilnaden mellom avrekning med statskassa og mellomvære med statskassa"]
[null,null,null,null,null,null,null,"2019-12-31","2019-12-31"]
[0,null,null,null,null,null,null,"Spesifisering av bokført avrekning med statskassa","Spesifisering av rapportert mellomvære med statskassa","Skilnad"]
[0,null,"Omløpsmidlar"]
[0,null,null,"Kundefordringar",null,null,null,112995,0,{"$f":"H8-I8","v":112995}]
[0,null,null,"Sum",null,null,null,{"$f":"SUM(H8:H8)","v":112995},{"$f":"SUM(I8:I8)","v":0},{"$f":"H9-I9","v":112995}]
[0,null,"Kortsiktig gjeld"]
[-2023096,null,null,"Skuldig skattetrekk",null,null,null,-2023096,-2023096,{"$f":"H11-I11","v":0}]
[null,null,null,"Skuldig meirverdiavgift",null,null,null,-1129192,-1129192,{"$f":"H12-I12","v":0}]
[-1129192,null,null,"Annan kortsiktig gjeld",null,null,null,3031,3031]
[3031.3999999999996,null,null,"Sum",null,null,null,{"$f":"SUM(H11:H13)","v":-3149257},{"$f":"SUM(I11:I13)","v":-3149257},{"$f":"SUM(J11:J12)","v":0}]
[0]
[null,null,"Sum",null,null,null,null,{"$f":"H9+H14","v":-3036262},{"$f":"I9+I14","v":-3149257},{"$f":"J9+J14","v":112995}]